[Event "Krakow Championship-A 2022"]
[Site "Krakow"]
[Date "2022.06.29"]
[Round "6.13"]
[White "Lim, Zhuo Ren"]
[Black "Paszewski, Mateusz"]
[Result "1/2-1/2"]
[ECO "D44"]
[WhiteElo "2290"]
[BlackElo "2286"]
[Annotator "NA RC"]
[PlyCount "77"]
[EventDate "2022.06.25"]
[EventType "swiss"]
[EventCountry "POL"]
[SourceTitle "playchess.com"]
[Source "ChessBase"]
[SourceQuality "1"]
[TimeControl "40/5400+30:1800+30"]

1. d4 {[%emt 0:06:37]} d5 {[%emt 0:00:11]} 2. Nf3 {[%emt 0:00:15]} Nf6 {[%emt 0:00:04]} 3. c4 {[%emt 0:00:07]} c6 {[%emt 0:00:04]} 4. Nc3 {[%emt 0:01:12]} e6 {[%emt 0:00:32]} 5. Bg5 {[%emt 0:00:54]} dxc4 {[%emt 0:00:30]} 6. e4 {[%emt 0:00:40]} b5 {[%emt 0:00:25]} 7. e5 {[%emt 0:00:15]} h6 {[%emt 0:00:04]} 8. Bh4 {[%emt 0:00:04]} g5 {[%emt 0:00:03]} 9. Nxg5 {[%emt 0:00:06]} hxg5 {[%emt 0:00:04]} 10. Bxg5 {[%emt 0:00:06]} Nbd7 {[%emt 0:00:07]} 11. g3 {[%emt 0:00:28]} Bb7 {[%emt 0:00:11]} 12. Bg2 {[%emt 0:00:19]} Qb6 {[%emt 0:00:34]} 13. exf6 {[%emt 0:00:08]} O-O-O {[%emt 0:00:19]} 14. O-O {[%emt 0:00:29]} c5 {[%emt 0:00:49]} 15. d5 {[%emt 0:00:14]} b4 {[%emt 0:00:17]} 16. Na4 {[%emt 0:00:26]} Qa6 {[%emt 0:01:50]} 17. a3 {[%emt 0:00:11]} Bxd5 {[%emt 0:00:19]} 18. Bxd5 {[%emt 0:00:09]} Ne5 {[%emt 0:00:03]} 19. Nxc5 {[%emt 0:00:14]} Bxc5 {[%emt 0:01:54]} 20. axb4 {[%emt 0:00:20]} Bxf2+ {[%emt 0:00:25]} 21. Kxf2 {[%emt 0:00:26]} Qb6+ {[%emt 0:01:16]} 22. Kg2 {[%emt 0:00:24]} Rxd5 {[%emt 0:00:19]} 23. Qe2 {[%emt 0:00:38]} Qc6 {[%emt 0:22:06]} 24. Kg1 {[%emt 0:02:29]} Nd3 {[%emt 0:01:23]} 25. Be3 {[%emt 0:00:24]} Rdh5 {[%emt 0:04:14]} 26. h4 {[%emt 0:07:14]} Rg8 {[%emt 0:04:02]} 27. Qg2 {[%emt 0:09:12]} Qxg2+ {[%emt 0:22:09]} 28. Kxg2 {[%emt 0:00:02]} Rxh4 {[%emt 0:00:15]} 29. Rxa7 {[%emt 0:00:12]} Rhg4 {[%emt 0:01:11]} 30. Ra8+ {[%emt 0:05:05]} Kd7 {[%emt 0:01:22]} 31. Rxg8 {[%emt 0:00:57]} Rxg8 {[%emt 0:01:19]} 32. b3 {[%emt 0:01:21]} e5 {[%emt 0:04:55]} 33. bxc4 {[%emt 0:00:26]} Nxb4 {[%emt 0:00:12]} 34. Rb1 {[%emt 0:39:51]} Nc2 {[%emt 0:09:05]} 35. Bf2 {[%emt 0:00:24]} Rc8 {[%emt 0:02:30]} 36. Rb7+ {[%emt 0:03:11]} Ke6 {[%emt 0:00:08]} 37. Rb6+ {[%emt 0:00:04]} Kf5 {[%emt 0:01:07]} 38. c5 {[%emt 0:00:10]} Nd4 {[%emt 0:01:14]} 39. Bxd4 {[%emt 0:07:09]} 1/2-1/2

[Event "Krakow Championship-A 2022"]
[Site "Krakow"]
[Date "2022.06.29"]
[Round "6.14"]
[White "Stevik, Patrik jun."]
[Black "Marszalek, Maciej"]
[Result "1/2-1/2"]
[ECO "B32"]
[WhiteElo "2188"]
[BlackElo "2290"]
[Annotator "NA RC"]
[PlyCount "80"]
[EventDate "2022.06.25"]
[EventType "swiss"]
[EventCountry "POL"]
[SourceTitle "playchess.com"]
[Source "ChessBase"]
[SourceQuality "1"]
[TimeControl "40/5400+30:1800+30"]

1. Nf3 {[%emt 0:06:34]} c5 {[%emt 0:07:48]} 2. e4 {[%emt 0:01:33]} Nc6 {[%emt 0:01:15]} 3. d4 {[%emt 0:01:13]} cxd4 {[%emt 0:00:02]} 4. Nxd4 {[%emt 0:00:01]} e5 {[%emt 0:00:11]} 5. Nb5 {[%emt 0:00:32]} d6 {[%emt 0:00:03]} 6. N1c3 {[%emt 0:00:18]} a6 {[%emt 0:00:06]} 7. Na3 {[%emt 0:00:05]} b5 {[%emt 0:00:29]} 8. Nd5 {[%emt 0:00:07]} Nge7 {[%emt 0:00:51]} 9. c4 {[%emt 0:04:55]} Nd4 {[%emt 0:07:24]} 10. Bd3 {[%emt 0:06:56]} Nxd5 {[%emt 0:03:26]} 11. cxd5 {[%emt 0:00:57]} Be7 {[%emt 0:00:17]} 12. O-O {[%emt 0:00:36]} O-O {[%emt 0:00:06]} 13. Be3 {[%emt 0:01:14]} f5 {[%emt 0:06:24]} 14. Bxd4 {[%emt 0:04:40]} exd4 {[%emt 0:03:17]} 15. Nc2 {[%emt 0:01:05]} f4 {[%emt 0:04:07]} 16. Nxd4 {[%emt 0:01:26]} Bf6 {[%emt 0:00:58]} 17. Nc6 {[%emt 0:07:44]} Qe8 {[%emt 0:03:20]} 18. f3 {[%emt 0:10:24]} Bxb2 {[%emt 0:02:44]} 19. Rb1 {[%emt 0:00:15]} Ba3 {[%emt 0:01:54]} 20. Kh1 {[%emt 0:01:23]} Bd7 {[%emt 0:01:05]} 21. Re1 {[%emt 0:02:56]} Bxc6 {[%emt 0:07:55]} 22. dxc6 {[%emt 0:02:08]} Kh8 {[%emt 0:00:12]} 23. e5 {[%emt 0:09:11]} dxe5 {[%emt 0:05:31]} 24. Be4 {[%emt 0:03:51]} Qe7 {[%emt 0:01:45]} 25. Qc2 {[%emt 0:01:51]} g6 {[%emt 0:06:46]} 26. Red1 {[%emt 0:03:13]} Rad8 {[%emt 0:03:17]} 27. Rxd8 {[%emt 0:04:01]} Rxd8 {[%emt 0:00:03]} 28. Rd1 {[%emt 0:00:07]} Rxd1+ {[%emt 0:07:18]} 29. Qxd1 {[%emt 0:00:01]} Bd6 {[%emt 0:05:25]} 30. g3 {[%emt 0:01:41]} fxg3 {[%emt 0:00:47]} 31. hxg3 {[%emt 0:00:02]} Qe6 {[%emt 0:00:35]} 32. g4 {[%emt 0:02:09]} Kg7 {[%emt 0:01:54]} 33. Qd2 {[%emt 0:02:37]} Bc7 {[%emt 0:02:12]} 34. Kg2 {[%emt 0:04:40]} Qd6 {[%emt 0:03:09]} 35. Qe3 {[%emt 0:01:23]} Qd4 {[%emt 0:02:36]} 36. Qa3 {[%emt 0:01:13]} Qd2+ {[%emt 0:00:51]} 37. Kh3 {[%emt 0:02:37]} Qh6+ {[%emt 0:00:31]} 38. Kg2 {[%emt 0:00:09]} Qd2+ {[%emt 0:00:09]} 39. Kh3 {[%emt 0:00:05]} Qh6+ {[%emt 0:07:07]} 40. Kg2 {[%emt 0:00:30]} Qd2+ {[%emt 0:00:05]} 1/2-1/2

[Event "Krakow Championship-A 2022"]
[Site "Krakow"]
[Date "2022.06.29"]
[Round "6.15"]
[White "Sieber, Fiona"]
[Black "Mikrut, Dariusz"]
[Result "1/2-1/2"]
[ECO "B28"]
[WhiteElo "2264"]
[BlackElo "2361"]
[Annotator "TA"]
[PlyCount "85"]
[EventDate "2022.06.25"]
[EventType "swiss"]
[EventCountry "POL"]
[SourceTitle "playchess.com"]
[Source "ChessBase"]
[SourceQuality "1"]
[TimeControl "40/5400+30:1800+30"]

{[%evp 17,85,57,35,24,25,19,18,9,27,25,22,0,13,11,37,21,20,0,69,20,69,0,0,-46,-41,-180,-50,-50,-50,-50,-40,-48,-45,-57,-52,-49,-49,-102,-2,-26,-14,0,112,83,112,18,9,0,33,22,22,22,22,11,52,43,47,42,37,17,18,17,13,0,0,0,0,0,0,0]} 1. e4 {[%emt 0:00:33]} c5 {[%emt 0:06:08]} 2. Nf3 {[%emt 0:00:00]} a6 {[%emt 0:00:08]} 3. c4 {[%emt 0:00:00]} e6 {[%emt 0:00:05]} 4. Nc3 {[%emt 0:00:15]} Qc7 {[%emt 0:00:14]} 5. Be2 {[%emt 0:01:18]} Nc6 {[%emt 0:00:32]} 6. O-O {[%emt 0:01:28]} Nf6 {[%emt 0:02:01]} 7. d4 {[%emt 0:06:08]} cxd4 {[%emt 0:04:40]} 8. Nxd4 {[%emt 0:00:05]} Bb4 {[%emt 0:04:02]} 9. Nxc6 {[%emt 0:02:53]} dxc6 {[%emt 0:02:34]} 10. Qb3 {[%emt 0:01:15] B41: Sicilian: Kan Variation: 5 c4.} Bd6 {[%emt 0:06:33]} 11. f4 {[%emt 0:07:31][%cal Bf2f4,Bf4f5][%mdl 32]} e5 {[%emt 0:00:36][%cal Re5f4]} 12. f5 {[%emt 0:00:16]} Bc5+ {[%emt 0:00:16]} 13. Kh1 {[%emt 0:00:05]} Bd4 {[%emt 0:00:05]} 14. Bf3 {[%emt 0:08:54]} b6 {[%emt 0:04:59] [#]} 15. Bg5 $146 {[%emt 0:10:37]} ({Predecessor:} 15. Ne2 c5 16. g4 Bb7 17. Qc2 h6 18. Bd2 O-O-O 19. Ng3 Rd6 20. Rad1 Rhd8 21. g5 hxg5 22. Bxg5 {0-1 (35) Ozbilici,A (1813)-Haznedaroglu,K (2451) Malatya 2015}) 15... h6 {[%emt 0:06:36]} 16. Bh4 {[%emt 0:00:25]} Bb7 {[%emt 0:00:26]} 17. Qc2 {[%emt 0:00:55]} O-O-O {[%emt 0:05:58]} ({Better is} 17... Qe7 $11) 18. Rae1 {[%emt 0:02:41]} (18. b4 $14) 18... Rd6 {[%emt 0:06:48]} (18... Bxc3 $11 19. Qxc3 c5) 19. Ne2 {[%emt 0:03:31]} (19. b4 $14) 19... c5 $1 $11 {[%emt 0:06:25]} 20. Ng3 {[%emt 0:00:49]} (20. a3 $11) 20... Nh7 $15 {[%emt 0:02:53]} 21. Nh5 {[%emt 0:03:33] [#]} (21. Ne2 $15) 21... f6 {[%emt 0:00:24]} ({Black should try} 21... g6 $1 $19 {Threatens to win with ...Kb8.} 22. fxg6 fxg6) 22. Re2 {[%emt 0:01:53]} Ng5 {[%emt 0:01:04]} 23. Be1 {[%emt 0:00:08]} Qf7 {[%emt 0:00:44]} 24. Ng3 {[%emt 0:03:29]} h5 {[%emt 0:00:23] aiming for ...h4.} 25. h4 {[%emt 0:00:36]} Nxf3 {[%emt 0:00:27]} 26. gxf3 {[%emt 0:03:04]} Kb8 {[%emt 0:00:06]} 27. Bd2 {[%emt 0:01:20]} (27. Rg2 $15) 27... Bc8 {[%emt 0:00:54]} (27... Rg8 $17 {Black wants to play ...g5.} 28. Rg2 g6 29. fxg6 Rxg6) 28. Rg2 $1 $11 {[%emt 0:00:41]} Rg8 {[%emt 0:01:04]} 29. Ne2 {[%emt 0:05:01]} Qd7 {[%emt 0:11:10]} (29... Bb7 $11) 30. Nxd4 $16 {[%emt 0:05:45]} Rxd4 {[%emt 0:01:34]} 31. Bc3 {[%emt 0:00:43] White is more active.} (31. Bh6 $16) 31... Rd3 $11 {[%emt 0:01:10]} 32. Rd2 {[%emt 0:01:11]} Rd8 {[%emt 0:05:04][%cal Rd3d2]} 33. Rxd3 {[%emt 0:01:11]} Qxd3 {[%emt 0:00:06]} 34. Qxd3 {[%emt 0:00:02]} Rxd3 $14 {[%emt 0:00:01][%mdl 4096] Endgame KRB-KRB} 35. Kg2 {[%emt 0:00:21]} b5 {[%emt 0:00:40]} 36. Kf2 {[%emt 0:00:46]} bxc4 {[%emt 0:06:07]} 37. Rg1 {[%emt 0:07:34]} Rd7 {[%emt 0:03:45]} 38. Ke3 {[%emt 0:01:34][%mdl 1024] White has compensation.} Bb7 {[%emt 0:00:27] The position is equal.} 39. Ba5 {[%emt 0:08:10]} Bc6 {[%emt 0:02:27]} 40. Rg2 {[%emt 0:09:58]} Rd3+ {[%emt 0:04:44]} 41. Ke2 {[%emt 0:30:19]} Rd7 {[%emt 0:30:09]} 42. Ke1 {[%emt 0:00:00]} Rd3 {[%emt 0:00:00]} 43. Ke2 {[%emt 0:00:00] Weighted Error Value: White=0.22 (precise) /Black=0.30} 1/2-1/2

[Event "Krakow Championship-A 2022"]
[Site "Krakow"]
[Date "2022.06.29"]
[Round "6.16"]
[White "Liu, Casper"]
[Black "Easwaralingam, Adesh"]
[Result "1-0"]
[ECO "E01"]
[WhiteElo "2218"]
[BlackElo "2116"]
[Annotator "NA RC"]
[PlyCount "69"]
[EventDate "2022.06.25"]
[EventType "swiss"]
[EventCountry "POL"]
[SourceTitle "playchess.com"]
[Source "ChessBase"]
[SourceQuality "1"]
[TimeControl "40/5400+30:1800+30"]

1. d4 {[%emt 0:00:02]} Nf6 {[%emt 0:00:10]} 2. c4 {[%emt 0:00:05]} e6 {[%emt 0:00:08]} 3. g3 {[%emt 0:00:04]} d5 {[%emt 0:00:29]} 4. Bg2 {[%emt 0:00:09]} dxc4 {[%emt 0:01:27]} 5. Qa4+ {[%emt 0:00:21]} c6 {[%emt 0:01:04]} 6. Qxc4 {[%emt 0:00:46]} b5 {[%emt 0:01:07]} 7. Qd3 {[%emt 0:00:25]} Bb7 {[%emt 0:00:49]} 8. Nc3 {[%emt 0:00:31]} Qb6 {[%emt 0:04:33]} 9. Nh3 {[%emt 0:05:12]} Nbd7 {[%emt 0:04:45]} 10. O-O {[%emt 0:06:08]} a6 {[%emt 0:05:32]} 11. a4 {[%emt 0:03:31]} Rd8 {[%emt 0:09:32]} 12. Be3 {[%emt 0:05:28]} Nd5 {[%emt 0:03:02]} 13. Nxd5 {[%emt 0:04:39]} cxd5 {[%emt 0:01:12]} 14. axb5 {[%emt 0:00:07]} axb5 {[%emt 0:01:04]} 15. Bd2 {[%emt 0:01:58]} b4 {[%emt 0:01:42]} 16. Rfc1 {[%emt 0:06:33]} Bd6 {[%emt 0:02:46]} 17. Bf4 {[%emt 0:00:16]} Bxf4 {[%emt 0:03:59]} 18. Nxf4 {[%emt 0:00:07]} O-O {[%emt 0:00:57]} 19. e3 {[%emt 0:00:47]} Ra8 {[%emt 0:04:44]} 20. Qb3 {[%emt 0:00:39]} Rxa1 {[%emt 0:07:11]} 21. Rxa1 {[%emt 0:00:06]} Ba6 {[%emt 0:04:45]} 22. Qa4 {[%emt 0:05:53]} Nb8 {[%emt 0:00:05]} 23. Bf1 {[%emt 0:01:35]} Bxf1 {[%emt 0:04:28]} 24. Kxf1 {[%emt 0:00:11]} Nc6 {[%emt 0:14:32]} 25. Nd3 {[%emt 0:00:10]} Rb8 {[%emt 0:06:55]} 26. Rc1 {[%emt 0:03:06]} Na7 {[%emt 0:00:10]} 27. Kg2 {[%emt 0:03:16]} g6 {[%emt 0:00:32]} 28. Qd7 {[%emt 0:02:47]} Rb7 {[%emt 0:00:54]} 29. Qe8+ {[%emt 0:00:31]} Kg7 {[%emt 0:00:04]} 30. Nc5 {[%emt 0:00:46]} Rc7 {[%emt 0:03:26]} 31. Nd7 {[%emt 0:00:19]} Rxd7 {[%emt 0:00:52]} 32. Qxd7 {[%emt 0:00:08]} Nb5 {[%emt 0:00:46]} 33. Rc6 {[%emt 0:02:16]} Qa7 {[%emt 0:01:23]} 34. Qd8 {[%emt 0:00:47]} Nxd4 {[%emt 0:03:36]} 35. Rc7 {[%emt 0:01:42]} 1-0

[Event "Krakow Championship-A 2022"]
[Site "Krakow"]
[Date "2022.06.29"]
[Round "6.17"]
[White "Kyc, Jerzy"]
[Black "Pniaczek, Marek"]
[Result "0-1"]
[ECO "C80"]
[WhiteElo "2213"]
[BlackElo "2298"]
[Annotator "NA RC"]
[PlyCount "74"]
[EventDate "2022.06.25"]
[EventType "swiss"]
[EventCountry "POL"]
[SourceTitle "playchess.com"]
[Source "ChessBase"]
[SourceQuality "1"]
[TimeControl "40/5400+30:1800+30"]

1. e4 {[%emt 0:00:02]} e5 {[%emt 0:00:03]} 2. Nf3 {[%emt 0:00:05]} Nc6 {[%emt 0:00:03]} 3. Bb5 {[%emt 0:00:05]} a6 {[%emt 0:00:04]} 4. Ba4 {[%emt 0:00:03]} Nf6 {[%emt 0:00:04]} 5. O-O {[%emt 0:00:04]} Nxe4 {[%emt 0:00:03]} 6. Re1 {[%emt 0:00:16]} Nc5 {[%emt 0:04:34]} 7. Bxc6 {[%emt 0:08:38]} dxc6 {[%emt 0:00:11]} 8. Nxe5 {[%emt 0:00:08]} Be7 {[%emt 0:01:29]} 9. d4 {[%emt 0:01:17]} Ne6 {[%emt 0:01:22]} 10. Be3 {[%emt 0:01:01]} O-O {[%emt 0:00:44]} 11. c4 {[%emt 0:00:43]} Ng5 {[%emt 0:17:44]} 12. Qd3 {[%emt 0:07:56]} f6 {[%emt 0:10:29]} 13. Bxg5 {[%emt 0:03:34]} fxg5 {[%emt 0:00:17]} 14. Nc3 {[%emt 0:00:21]} Bf5 {[%emt 0:01:55]} 15. Qe3 {[%emt 0:05:28]} Bf6 {[%emt 0:11:57]} 16. Rad1 {[%emt 0:04:05]} Qd6 {[%emt 0:02:13]} 17. Ne4 {[%emt 0:16:38]} Bxe4 {[%emt 0:00:12]} 18. Qxe4 {[%emt 0:00:10]} Rfe8 {[%emt 0:06:27]} 19. g3 {[%emt 0:16:11]} Rad8 {[%emt 0:01:07]} 20. f4 {[%emt 0:01:26]} gxf4 {[%emt 0:01:55]} 21. gxf4 {[%emt 0:00:02]} c5 {[%emt 0:10:08]} 22. d5 {[%emt 0:07:10]} Re7 {[%emt 0:00:46]} 23. Re3 {[%emt 0:05:06]} Rde8 {[%emt 0:03:01]} 24. Rde1 {[%emt 0:00:48]} g6 {[%emt 0:00:43]} 25. R1e2 {[%emt 0:01:31]} Bg7 {[%emt 0:00:57]} 26. h4 {[%emt 0:01:15]} Rf8 {[%emt 0:02:17]} 27. Kg2 {[%emt 0:01:17]} Rf5 {[%emt 0:01:13]} 28. Kg3 {[%emt 0:01:01]} Bh6 {[%emt 0:01:30]} 29. b3 {[%emt 0:02:05]} Bxf4+ {[%emt 0:03:56]} 30. Qxf4 {[%emt 0:00:01]} Rxf4 {[%emt 0:00:04]} 31. Kxf4 {[%emt 0:00:07]} Qf6+ {[%emt 0:04:38]} 32. Kg3 {[%emt 0:00:03]} g5 {[%emt 0:00:57]} 33. hxg5 {[%emt 0:02:19]} Qxg5+ {[%emt 0:00:05]} 34. Kf2 {[%emt 0:00:48]} Qh4+ {[%emt 0:00:55]} 35. Kf1 {[%emt 0:02:16]} Qh1+ {[%emt 0:00:22]} 36. Kf2 {[%emt 0:00:01]} Rg7 {[%emt 0:00:27]} 37. a3 {[%emt 0:03:32]} Rg2+ {[%emt 0:01:16]} 0-1

[Event "Krakow Championship-A 2022"]
[Site "Krakow"]
[Date "2022.06.29"]
[Round "6.18"]
[White "Goroshkov, Maksym"]
[Black "Kvaloy, Aksel Bu"]
[Result "1/2-1/2"]
[ECO "E92"]
[WhiteElo "2226"]
[BlackElo "2296"]
[Annotator "NA RC"]
[PlyCount "84"]
[EventDate "2022.06.25"]
[EventType "swiss"]
[EventCountry "POL"]
[SourceTitle "playchess.com"]
[Source "ChessBase"]
[SourceQuality "1"]
[TimeControl "40/5400+30:1800+30"]

1. Nf3 {[%emt 0:00:03]} g6 {[%emt 0:02:36]} 2. e4 {[%emt 0:00:50]} Bg7 {[%emt 0:02:11]} 3. d4 {[%emt 0:00:14]} d6 {[%emt 0:04:09]} 4. c4 {[%emt 0:02:33]} Nf6 {[%emt 0:03:26]} 5. Nc3 {[%emt 0:00:21]} O-O {[%emt 0:00:25]} 6. Be2 {[%emt 0:00:33]} e5 {[%emt 0:02:03]} 7. dxe5 {[%emt 0:02:40]} dxe5 {[%emt 0:00:09]} 8. Bg5 {[%emt 0:03:33]} Nbd7 {[%emt 0:03:50]} 9. Qc2 {[%emt 0:23:28]} c6 {[%emt 0:03:10]} 10. O-O-O {[%emt 0:04:07]} h6 {[%emt 0:06:47]} 11. Bd2 {[%emt 0:02:39]} Qe7 {[%emt 0:02:15]} 12. h3 {[%emt 0:01:16]} Nc5 {[%emt 0:08:26]} 13. Be3 {[%emt 0:01:38]} Nfd7 {[%emt 0:07:04]} 14. g4 {[%emt 0:04:03]} Ne6 {[%emt 0:03:26]} 15. h4 {[%emt 0:02:53]} Ndc5 {[%emt 0:10:06]} 16. Kb1 {[%emt 0:19:37]} Nf4 {[%emt 0:02:55]} 17. Ne1 {[%emt 0:01:21]} Nce6 {[%emt 0:05:58]} 18. Nd3 {[%emt 0:03:23]} Nd4 {[%emt 0:01:41]} 19. Bxd4 {[%emt 0:01:48]} exd4 {[%emt 0:00:06]} 20. Nxf4 {[%emt 0:00:23]} dxc3 {[%emt 0:00:07]} 21. bxc3 {[%emt 0:00:31]} Qc5 {[%emt 0:06:31]} 22. f3 {[%emt 0:00:52]} b5 {[%emt 0:03:37]} 23. cxb5 {[%emt 0:02:38]} a6 {[%emt 0:01:59]} 24. Nd3 {[%emt 0:01:42]} Qxb5+ {[%emt 0:05:27]} 25. Kc1 {[%emt 0:00:04]} Qa5 {[%emt 0:01:12]} 26. Kd2 {[%emt 0:03:58]} Be6 {[%emt 0:01:21]} 27. Ke1 {[%emt 0:03:32]} Bxc3+ {[%emt 0:01:04]} 28. Kf1 {[%emt 0:00:33]} Rab8 {[%emt 0:04:11]} 29. Kg2 {[%emt 0:01:32]} c5 {[%emt 0:01:24]} 30. Rb1 {[%emt 0:01:35]} Bxa2 {[%emt 0:04:23]} 31. Ra1 {[%emt 0:00:03]} Bxa1 {[%emt 0:00:11]} 32. Rxa1 {[%emt 0:00:01]} Bb3 {[%emt 0:01:04]} 33. Rxa5 {[%emt 0:00:04]} Bxc2 {[%emt 0:00:04]} 34. Nxc5 {[%emt 0:00:06]} Rfd8 {[%emt 0:02:29]} 35. Bxa6 {[%emt 0:00:33]} Ra8 {[%emt 0:00:53]} 36. Rb5 {[%emt 0:00:23]} Bd3 {[%emt 0:00:50]} 37. Rb6 {[%emt 0:00:22]} Bxa6 {[%emt 0:00:24]} 38. Nxa6 {[%emt 0:00:00]} Rd3 {[%emt 0:00:52]} 39. Nb4 {[%emt 0:01:07]} Rb3 {[%emt 0:00:34]} 40. Nd5 {[%emt 0:00:00]} Ra2+ {[%emt 0:00:31]} 41. Kg3 {[%emt 0:30:08]} Rxb6 {[%emt 0:01:56]} 42. Nxb6 {[%emt 0:00:00]} Kg7 {[%emt 0:01:08]} 1/2-1/2

[Event "Krakow Championship-A 2022"]
[Site "Krakow"]
[Date "2022.06.29"]
[Round "6.20"]
[White "Trybus, Daniel"]
[Black "Kantorik, Marian"]
[Result "1-0"]
[ECO "C71"]
[WhiteElo "2145"]
[BlackElo "2211"]
[Annotator "NA RC"]
[PlyCount "67"]
[EventDate "2022.06.25"]
[EventType "swiss"]
[EventCountry "POL"]
[SourceTitle "playchess.com"]
[Source "ChessBase"]
[SourceQuality "1"]
[TimeControl "40/5400+30:1800+30"]

1. e4 {[%emt 0:00:04]} e5 {[%emt 0:02:29]} 2. Nf3 {[%emt 0:00:04]} Nc6 {[%emt 0:00:24]} 3. Bb5 {[%emt 0:00:02]} a6 {[%emt 0:00:29]} 4. Ba4 {[%emt 0:00:04]} d6 {[%emt 0:00:31]} 5. c4 {[%emt 0:01:59]} Bd7 {[%emt 0:00:41]} 6. d3 {[%emt 0:02:07]} Nge7 {[%emt 0:06:04]} 7. Nc3 {[%emt 0:01:23]} Ng6 {[%emt 0:03:12]} 8. Nd5 {[%emt 0:04:09]} Be7 {[%emt 0:00:56]} 9. Be3 {[%emt 0:02:11]} O-O {[%emt 0:03:06]} 10. h4 {[%emt 0:01:34]} f5 {[%emt 0:01:00]} 11. Ng5 {[%emt 0:06:41]} Nf4 {[%emt 0:04:46]} 12. Nxe7+ {[%emt 0:07:20]} Qxe7 {[%emt 0:00:21]} 13. Bxf4 {[%emt 0:02:42]} exf4 {[%emt 0:00:25]} 14. Bb3 {[%emt 0:00:02]} Nd4 {[%emt 0:08:26]} 15. c5+ {[%emt 0:01:15]} Nxb3 {[%emt 0:00:13]} 16. Qxb3+ {[%emt 0:00:04]} Kh8 {[%emt 0:00:07]} 17. O-O-O {[%emt 0:03:07]} dxc5 {[%emt 0:05:04]} 18. Rde1 {[%emt 0:01:36]} c4 {[%emt 0:07:04]} 19. Qxc4 {[%emt 0:00:30]} Bb5 {[%emt 0:00:39]} 20. Qc3 {[%emt 0:02:11]} fxe4 {[%emt 0:07:00]} 21. Rxe4 {[%emt 0:00:31]} Qd7 {[%emt 0:02:00]} 22. Ne6 {[%emt 0:03:05]} Rf6 {[%emt 0:00:39]} 23. Rhe1 {[%emt 0:02:06]} Bc6 {[%emt 0:09:14]} 24. Re5 {[%emt 0:02:35]} Re8 {[%emt 0:11:34]} 25. Qb3 {[%emt 0:06:44]} Ba4 {[%emt 0:07:15]} 26. Qc4 {[%emt 0:03:05]} Bb5 {[%emt 0:04:08]} 27. Nc5 {[%emt 0:01:48]} Rxe5 {[%emt 0:01:06]} 28. Rxe5 {[%emt 0:00:28]} Qc8 {[%emt 0:03:19]} 29. Qe4 {[%emt 0:00:36]} Bc6 {[%emt 0:00:22]} 30. Qe1 {[%emt 0:00:23]} h6 {[%emt 0:01:01]} 31. d4 {[%emt 0:00:47]} Rf8 {[%emt 0:00:42]} 32. d5 {[%emt 0:00:31]} Bd7 {[%emt 0:00:34]} 33. Re7 {[%emt 0:00:31]} Be8 {[%emt 0:04:06]} 34. Qe5 {[%emt 0:01:14]} 1-0

[Event "Krakow Championship-A 2022"]
[Site "Krakow"]
[Date "2022.06.29"]
[Round "6.21"]
[White "Gahan M G"]
[Black "Shehzad, Shazil"]
[Result "0-1"]
[ECO "C44"]
[WhiteElo "2248"]
[BlackElo "2237"]
[Annotator "NA RC"]
[PlyCount "76"]
[EventDate "2022.06.25"]
[EventType "swiss"]
[EventCountry "POL"]
[SourceTitle "playchess.com"]
[Source "ChessBase"]
[SourceQuality "1"]
[TimeControl "40/5400+30:1800+30"]

1. e4 {[%emt 0:00:34]} e5 {[%emt 0:08:18]} 2. Nf3 {[%emt 0:00:06]} Nc6 {[%emt 0:00:29]} 3. d4 {[%emt 0:00:02]} exd4 {[%emt 0:00:05]} 4. Nxd4 {[%emt 0:00:02]} Nf6 {[%emt 0:00:09]} 5. Nc3 {[%emt 0:00:03]} Bb4 {[%emt 0:00:05]} 6. Nxc6 {[%emt 0:00:03]} bxc6 {[%emt 0:00:05]} 7. Bd3 {[%emt 0:00:02]} d5 {[%emt 0:00:10]} 8. exd5 {[%emt 0:00:04]} O-O {[%emt 0:00:05]} 9. O-O {[%emt 0:00:06]} cxd5 {[%emt 0:00:03]} 10. Bg5 {[%emt 0:00:07]} Be6 {[%emt 0:00:03]} 11. Qf3 {[%emt 0:00:18]} h6 {[%emt 0:00:05]} 12. Bxf6 {[%emt 0:00:05]} Qxf6 {[%emt 0:00:05]} 13. Qxf6 {[%emt 0:00:03]} gxf6 {[%emt 0:00:04]} 14. Ne2 {[%emt 0:00:06]} c5 {[%emt 0:00:02]} 15. Ng3 {[%emt 0:00:46]} c4 {[%emt 0:01:47]} 16. Be2 {[%emt 0:00:30]} Rab8 {[%emt 0:00:25]} 17. Nh5 {[%emt 0:03:53]} Bd6 {[%emt 0:10:03]} 18. Nxf6+ {[%emt 0:04:17]} Kh8 {[%emt 0:00:55]} 19. Bf3 {[%emt 0:07:53]} d4 {[%emt 0:08:19]} 20. Rab1 {[%emt 0:04:27]} Be5 {[%emt 0:00:51]} 21. Ne4 {[%emt 0:05:35]} d3 {[%emt 0:01:01]} 22. cxd3 {[%emt 0:00:24]} cxd3 {[%emt 0:00:04]} 23. b3 {[%emt 0:00:56]} Rbc8 {[%emt 0:07:19]} 24. Rbc1 {[%emt 0:04:47]} Rc2 {[%emt 0:01:28]} 25. Rfd1 {[%emt 0:02:38]} Rfc8 {[%emt 0:00:29]} 26. Rb1 {[%emt 0:00:22]} f5 27. Ng3 {[%emt 0:02:17]} d2 {[%emt 0:04:38]} 28. Nf1 {[%emt 0:01:44]} Bc3 {[%emt 0:03:35]} 29. a4 {[%emt 0:00:11]} Bb4 {[%emt 0:01:00]} 30. Ne3 {[%emt 0:07:54]} Rc1 {[%emt 0:00:29]} 31. Rb2 {[%emt 0:00:17]} Bc3 {[%emt 0:01:51]} 32. Rb1 {[%emt 0:00:05]} Rxb1 {[%emt 0:00:07]} 33. Rxb1 {[%emt 0:00:04]} Bb4 {[%emt 0:02:57]} 34. Nc4 {[%emt 0:00:43]} Re8 {[%emt 0:02:13]} 35. Rf1 {[%emt 0:01:32]} f4 {[%emt 0:00:56]} 36. Bd1 {[%emt 0:00:54]} Bf5 {[%emt 0:00:30]} 37. Bh5 {[%emt 0:02:19]} Re1 {[%emt 0:01:00]} 38. Nxd2 {[%emt 0:00:13]} Bxd2 {[%emt 0:00:02]} 0-1